bitfinex-derivatives/quotes_SOLF0:USTF0_20250820
["timestamp","ask_amount","ask_price","bid_price","bid_amount"]
[1755682130951,5.54463247,181.61,181.57,5.5076]
[1755682133951,5.5069,181.6,181.57,5.5076]
[1755682136361,5.5069,181.6,181.57,7.06016988]
[1755682136861,5.54453247,181.61,181.58,5.5075]
[1755682137556,5.54453247,181.61,181.59,1.55256988]
[1755682138861,5.54453247,181.61,181.57,5.5077]
[1755682139163,5.507,181.6,181.57,7.06026988]
[1755682140263,5.54463247,181.61,181.57,7.06026988]
[1755682140666,5.54463247,181.61,181.58,5.5075]
[1755682141064,5.54463247,181.61,181.57,7.06026988]
[1755682141564,5.507,181.6,181.57,7.06026988]
[1755682141763,0.03793247,181.61,181.59,1.55256988]
[1755682141963,0.03793247,181.61,181.54,6.15783403]
[1755682142162,0.03793247,181.61,181.6,1.55256988]
[1755682143163,5.54463247,181.61,181.58,1.55256988]
[1755682143869,5.5069,181.6,181.58,1.55256988]
[1755682144962,5.5069,181.6,181.56,5.508]
[1755682144963,0.03793247,181.61,181.56,1.55256988]
[1755682145168,0.03793247,181.61,181.54,1.55256988]
[1755682145471,0.03793247,181.61,181.54,7.06116988]
[1755682146061,5.5079,181.57,181.53,5.509]
[1755682146266,0.03793247,181.61,181.53,5.509]
[1755682146471,97.11940997,181.62,181.53,5.509]
[1755682146671,5.5081,181.57,181.53,5.509]
[1755682147568,5.5082,181.56,181.53,5.509]
[1755682147768,0.03778784,181.59,181.53,5.509]
[1755682148172,0.03778784,181.59,181.54,5.5087]
[1755682148672,5.5076,181.58,181.54,5.5087]
[1755682149075,0.03778784,181.59,181.54,5.5087]
[1755682149572,5.5078,181.57,181.53,5.5089]
[1755682149962,5.5078,181.57,181.51,6.15783403]
[1755682149963,0.03778784,181.59,181.51,6.15783403]
[1755682150272,5.5081,181.57,181.52,5.5092]
[1755682150474,5.5081,181.57,181.51,6.15783403]
[1755682151171,5.5081,181.56,181.5,6.15783403]
[1755682151379,5.5081,181.56,181.5,8.5845758]
[1755682151874,0.03684144,181.55,181.52,5.5091]
[1755682153474,0.03684144,181.55,181.53,5.5089]
[1755682154575,0.03684144,181.55,181.52,5.5092]
[1755682155581,0.03684144,181.55,181.53,5.509]
[1755682157983,0.03684144,181.55,181.51,6.15783403]
[1755682159784,0.03684144,181.55,181.5,2.42674177]
[1755682159785,0.03684144,181.55,181.54,5.5087]
[1755682167688,0.03684144,181.55,181.51,6.15783403]
[1755682168389,0.03684144,181.55,181.54,1.55307211]
[1755682168990,0.03684144,181.55,181.54,7.06177211]
[1755682170287,0.03684144,181.55,181.54,5.5087]
[1755682170594,0.03684144,181.55,181.54,7.06177211]
[1755682172594,1.55307211,181.69,181.54,11.07199719]
[1755682172793,2.58629486,181.67,181.62,1.55307211]
[1755682173194,5.5059,181.64,181.62,1.55307211]
[1755682173393,1.55307211,181.63,181.57,1.55307211]
[1755682173589,5.5075,181.59,181.55,5.5084]
[1755682173796,1.55307211,181.63,181.58,0.04084158]
[1755682173997,1.55307211,181.61,181.58,0.04084158]
[1755682174496,5.5072,181.59,181.58,0.04084158]
[1755682177294,5.5072,181.6,181.58,0.04084158]
[1755682178697,1.55307211,181.65,181.58,5.54834158]
[1755682178899,1.55307211,181.65,181.58,0.04084158]
[1755682179198,5.5072,181.59,181.58,0.04084158]
[1755682206517,17.05690167,181.67,181.58,0.04084158]
[1755682206715,1.55307211,181.65,181.58,0.04084158]
[1755682206912,2.58951745,181.64,181.58,0.04084158]
[1755682207311,4.14258956,181.64,181.58,0.04084158]
[1755682207521,2.58951745,181.63,181.58,0.04084158]
[1755682207717,1.55307211,181.65,181.58,0.04084158]
[1755682207914,5.5071,181.6,181.58,0.04084158]
[1755682208716,5.5072,181.59,181.58,0.04084158]
[1755682209017,1.55307211,181.65,181.58,0.04084158]
[1755682209217,5.5068,181.61,181.58,5.54834158]
[1755682209414,134.94,181.66,181.59,1.55307211]
[1755682209616,134.94,181.66,181.61,1.55307211]
[1755682209814,95.28816455,181.68,181.63,1.55307211]
[1755682210020,95.28816455,181.68,181.65,1.55307211]
[1755682210415,95.28816455,181.68,181.67,1.55307211]
[1755682210622,95.28816455,181.68,181.64,0.03786992]
[1755682210821,5.5052,181.66,181.64,0.03786992]
[1755682211820,5.5048,181.67,181.64,5.54356992]
[1755682212020,95.28816455,181.68,181.64,5.54356992]
[1755682212725,100.79266455,181.68,181.64,5.54356992]
[1755682213222,95.28816455,181.68,181.64,0.03786992]
[1755682213423,95.28816455,181.68,181.64,2.46194265]
[1755682213620,95.28816455,181.68,181.67,2.42407273]
[1755682213824,134.94,181.75,181.67,2.42407273]
[1755682214422,134.94,181.75,181.67,7.92877273]
[1755682214620,134.94,181.75,181.69,0.0419331]
[1755682216029,5.5039,181.7,181.69,0.0419331]
[1755682216228,134.94,181.75,181.69,0.0419331]
[1755682216427,5.5036,181.71,181.69,0.0419331]
[1755682216628,134.94,181.75,181.69,0.0419331]
[1755682217131,5.5039,181.7,181.69,0.0419331]
[1755682219630,5.5039,181.7,181.69,3.31e-05]
[1755682234436,8.48797273,181.7,181.69,3.31e-05]
[1755682234635,5.5068,181.61,181.58,5.5075]
[1755682234837,134.86,181.67,181.54,8.60375312]
[1755682235034,134.86,181.67,181.54,2.42407273]
[1755682235842,5.507,181.6,181.56,5.5079]
[1755682236838,5.5072,181.59,181.56,5.5079]
[1755682241846,5.5075,181.58,181.55,5.5084]
[1755682242648,5.54470256,181.58,181.55,5.5084]
[1755682243848,5.5079,181.57,181.55,5.5084]
[1755682244945,5.5079,181.57,181.54,7.93257273]
[1755682245245,5.5081,181.56,181.54,7.93257273]
[1755682246051,5.5081,181.56,181.54,2.42407273]
[1755682247749,5.508,181.57,181.54,7.93277273]
[1755682249152,5.54480256,181.58,181.55,5.5084]
[1755682250952,0.03720256,181.58,181.57,5.5078]
[1755682251849,370.0,181.69,181.57,2.42407273]
[1755682252247,370.0,181.69,181.63,2.42407273]
[1755682252749,134.88,181.72,181.63,2.42407273]
[1755682253146,5.5046,181.68,181.66,0.03824654]
[1755682254054,134.88,181.72,181.66,0.03824654]
[1755682254747,5.5044,181.69,181.66,0.03824654]
[1755682254947,134.88,181.72,181.66,0.03824654]
[1755682255944,5.5047,181.68,181.66,0.03824654]
[1755682256149,134.88,181.72,181.66,0.03824654]
[1755682256548,5.5048,181.67,181.66,0.03824654]
[1755682257454,5.5045,181.68,181.66,0.03824654]
[1755682257754,134.88,181.72,181.66,2.46231927]
[1755682258056,5.5038,181.71,181.68,5.5045]
[1755682258553,93.7708885,181.77,181.66,2.42407273]
[1755682258751,2.57365058,181.76,181.68,0.04065897]
[1755682259157,93.7708885,181.77,181.68,0.04065897]
[1755682259158,2.42407273,181.75,181.68,0.04065897]
[1755682259356,5.5042,181.69,181.68,0.04065897]
[1755682273162,5.5042,181.69,181.68,5.897e-05]
[1755682273360,3.13525432,181.69,181.55,2.42407273]
[1755682273558,3.13525432,181.69,181.46,382.80391114]
[1755682273559,2.42407273,181.67,181.53,8.60375312]
[1755682273865,2.42407273,181.64,181.52,6.17968039]
[1755682274065,2.42407273,181.64,181.51,6.17968039]
[1755682274266,2.42407273,181.64,181.5,8.60375312]
[1755682274467,5.508,181.57,181.5,8.60375312]
[1755682274967,5.5083,181.56,181.53,5.5089]
[1755682275171,0.03843872,181.55,181.53,5.5089]
[1755682275374,5.5088,181.54,181.51,5.5095]
[1755682276079,5.5092,181.53,181.5,5.5099]
[1755682276581,5.5088,181.54,181.51,5.5095]
[1755682276777,0.03843872,181.55,181.48,6.17968039]
[1755682277175,5.5087,181.54,181.48,6.17968039]
[1755682278277,5.5091,181.53,181.5,5.5097]
[1755682278879,0.03843872,181.55,181.5,5.5097]
[1755682279074,0.03843872,181.55,181.48,6.17968039]
[1755682279284,0.03843872,181.55,181.47,8.60375312]
[1755682279581,0.03843872,181.55,181.47,2.42407273]
[1755682279781,0.03843872,181.55,181.45,6.17968039]
[1755682280088,0.03843872,181.55,181.44,2.42407273]
[1755682280289,2.42407273,181.57,181.45,5.5114]
[1755682280481,5.5105,181.49,181.45,5.5114]
[1755682281978,0.03592643,181.51,181.44,2.42407273]
[1755682282887,5.5108,181.48,181.44,7.93577273]
[1755682283686,5.5103,181.49,181.45,5.5115]
[1755682284187,5.5106,181.48,181.44,5.5117]
[1755682284585,0.03592643,181.51,181.44,5.5117]
[1755682284790,0.03592643,181.51,181.41,2.42407273]
[1755682286085,5.5106,181.48,181.43,5.512]
[1755682286390,0.03592643,181.51,181.38,7.13870153]
[1755682286683,11.0155,181.58,181.4,2.42407273]
[1755682286889,0.04007506,181.47,181.4,2.42407273]
[1755682287383,2.42407273,181.55,181.4,2.42407273]
[1755682287589,0.03875565,181.45,181.4,2.42407273]
[1755682287991,2.42407273,181.55,181.4,2.42407273]
[1755682288188,0.04175944,181.44,181.4,2.42407273]
[1755682288592,2.42407273,181.55,181.4,2.42407273]
[1755682288792,2.42407273,181.55,181.44,5.5116]
[1755682289190,0.03889546,181.49,181.44,5.5116]
[1755682291488,0.03889546,181.49,181.45,5.5114]
[1755682292791,0.03889546,181.49,181.44,5.5116]
[1755682293394,0.03889546,181.49,181.43,5.512]
[1755682294392,0.03889546,181.49,181.42,5.5124]
[1755682294592,0.03889546,181.49,181.38,0.95902114]
[1755682294793,0.03889546,181.49,181.37,2.42407273]
[1755682294994,5.5117,181.45,181.41,5.5125]
[1755682295398,5.55061422,181.45,181.41,5.5125]
[1755682296297,5.55061422,181.45,181.42,5.5123]
[1755682296496,0.03891422,181.45,181.42,5.5123]
[1755682299294,5.55041422,181.45,181.42,5.5123]
[1755682300501,5.55041422,181.45,181.41,5.5126]
[1755682301601,5.55041422,181.45,181.42,5.5124]
[1755682302098,5.55041422,181.45,181.41,5.5126]
[1755682302294,5.5118,181.44,181.41,5.5126]
[1755682302998,5.5118,181.44,181.4,5.5129]
[1755682303198,5.55051422,181.45,181.37,2.42407273]
[1755682303398,5.55051422,181.45,181.41,5.5125]
[1755682304101,5.5118,181.44,181.41,5.5125]
[1755682305402,5.5123,181.43,181.37,2.42407273]
[1755682305803,0.03891422,181.45,181.37,2.42407273]
[1755682306204,0.03891422,181.45,181.4,2.42407273]
[1755682306896,0.03891422,181.45,181.42,5.5122]
[1755682307293,0.03891422,181.45,181.43,5.5121]
[1755682308099,0.03891422,181.45,181.44,5.5118]
[1755682308502,100.18830239,181.5,181.43,2.42407273]
[1755682308698,5.5105,181.49,181.46,5.5112]
[1755682309005,5.5105,181.49,181.43,2.42407273]
[1755682309203,5.5105,181.49,181.45,5.5114]
[1755682310203,5.5105,181.49,181.45,5.54743756]
[1755682311304,5.5106,181.48,181.45,5.54743756]
[1755682313406,5.5106,181.48,181.45,0.03603756]
[1755682314797,100.18830239,181.5,181.45,0.03603756]
[1755682315500,5.5106,181.48,181.45,5.54733756]
[1755682315700,5.5106,181.48,181.45,0.03603756]
[1755682316407,2.42407273,181.57,181.45,0.03603756]
[1755682316808,5.5099,181.51,181.47,5.5107]
[1755682317108,5.5099,181.51,181.43,2.42407273]
[1755682318008,5.5099,181.51,181.47,5.5107]
[1755682318309,5.51,181.5,181.47,5.5107]
[1755682319210,5.5103,181.49,181.47,0.03620375]
[1755682320098,2.42407273,181.57,181.47,0.03620375]
[1755682320305,2.5717044,181.56,181.47,0.03620375]
[1755682321003,2.5717044,181.56,181.48,5.5103]
[1755682321209,2.5717044,181.56,181.47,0.03620375]
[1755682321400,5.5102,181.5,181.47,5.54690375]
[1755682321800,2.42407273,181.57,181.47,0.03620375]
[1755682322004,5.5105,181.49,181.47,0.03620375]
[1755682322305,2.42407273,181.57,181.47,0.03620375]
[1755682322607,2.57376041,181.56,181.47,0.03620375]
[1755682322905,5.5106,181.48,181.47,0.03620375]
[1755682325411,5.5103,181.49,181.47,0.03620375]
[1755682325614,2.42407273,181.57,181.47,0.03620375]
[1755682325909,5.5101,181.5,181.47,0.03620375]
[1755682326412,107.62013129,181.54,181.47,0.03620375]
[1755682327209,5.5103,181.49,181.47,0.03620375]
[1755682328111,5.5101,181.5,181.47,0.03620375]
[1755682329814,5.5103,181.49,181.47,0.03620375]
[1755682332624,5.5106,181.48,181.47,0.03620375]
[1755682334418,5.5104,181.49,181.47,0.03620375]
[1755682334815,107.62013129,181.54,181.47,8.63995687]
[1755682335022,107.62013129,181.54,181.48,6.17968039]
[1755682335520,5.5092,181.53,181.5,5.5097]
[1755682335720,5.5092,181.53,181.48,6.17968039]
[1755682336021,107.62013129,181.54,181.48,6.17968039]
[1755682336214,5.5091,181.53,181.5,5.5099]
[1755682337818,107.62013129,181.54,181.47,8.63995687]
[1755682338616,5.5097,181.51,181.48,5.5104]
[1755682339021,107.62013129,181.54,181.48,5.5104]
[1755682339521,5.5094,181.52,181.48,5.5104]
[1755682340119,5.5092,181.53,181.49,5.5102]
[1755682340622,113.12903129,181.54,181.47,8.63995687]
[1755682341121,113.12903129,181.54,181.5,5.5098]
[1755682342022,5.5091,181.53,181.49,5.5101]
[1755682342218,107.62013129,181.54,181.48,2.42407273]
[1755682342822,107.62013129,181.54,181.5,5.5099]
[1755682343224,107.62013129,181.54,181.51,5.5096]
[1755682343416,137.38407273,181.61,181.51,2.42407273]
[1755682343417,134.96,181.61,181.51,2.42407273]
[1755682344015,134.96,181.61,181.54,2.46147548]
[1755682345222,5.507,181.6,181.56,5.5079]
[1755682347125,5.507,181.6,181.55,5.5084]
[1755682347814,134.96,181.61,181.54,2.46147548]
[1755682348923,140.4666,181.61,181.56,5.5081]
[1755682349526,5.5069,181.6,181.56,5.5081]
[1755682349825,5.5069,181.6,181.55,5.5083]
[1755682350028,134.96,181.61,181.55,5.5083]
[1755682350630,5.5072,181.59,181.55,5.5083]
[1755682350828,134.96,181.61,181.55,5.5083]
[1755682351726,5.5073,181.59,181.55,5.5083]
[1755682351931,134.96,181.61,181.56,5.5081]
[1755682352424,5.507,181.6,181.56,5.5081]
[1755682353029,140.4668,181.61,181.54,2.46147548]
[1755682353734,5.507,181.6,181.56,5.5079]
[1755682354225,5.507,181.6,181.55,5.5083]
[1755682355532,134.96,181.61,181.54,2.46147548]
[1755682355833,134.96,181.61,181.56,5.5079]
[1755682356131,140.4669,181.61,181.56,5.5079]
[1755682356433,140.4669,181.61,181.57,5.5078]
[1755682356625,134.96,181.61,181.57,5.5078]
[1755682358235,140.4667,181.61,181.57,5.5078]
[1755682359731,134.96,181.61,181.58,5.5074]
[1755682360033,2.42407273,181.71,181.57,2.42407273]
[1755682360333,5.5056,181.65,181.57,2.42407273]
[1755682360529,5.5056,181.65,181.62,0.0378421]
[1755682361435,5.5057,181.64,181.62,0.0378421]
[1755682361624,134.88,181.7,181.62,0.0378421]
[1755682362031,5.506,181.63,181.62,0.0378421]
[1755682363938,6.066,181.63,181.62,4.21e-05]
[1755682364338,5.506,181.63,181.62,4.21e-05]
[1755682365933,5.54544717,181.64,181.62,4.21e-05]
[1755682366636,5.506,181.63,181.62,4.21e-05]
[1755682369534,0.03964717,181.64,181.62,4.21e-05]
[1755682369740,383.50987273,181.74,181.62,2.42411483]
[1755682369741,370.08,181.74,181.62,2.42411483]
[1755682369933,5.5042,181.69,181.62,2.42411483]
[1755682370134,134.86,181.72,181.65,5.5052]
[1755682370334,134.86,181.72,181.62,2.42407273]
[1755682370929,134.86,181.72,181.65,0.03664638]
[1755682371138,5.5051,181.66,181.65,0.03664638]
[1755682378939,5.5048,181.67,181.65,0.03664638]
[1755682379242,134.86,181.72,181.65,0.03664638]
[1755682379942,5.5045,181.68,181.65,5.54204638]
[1755682380945,5.5044,181.69,181.66,5.5051]
[1755682381238,134.86,181.72,181.66,5.5051]
[1755682381446,5.5037,181.71,181.68,5.5044]
[1755682382045,5.5037,181.71,181.65,2.46071911]
[1755682382046,5.504,181.7,181.67,5.5047]
[1755682383041,5.504,181.7,181.66,5.505]
[1755682383445,5.5042,181.69,181.66,5.505]
[1755682383852,5.504,181.7,181.66,5.505]
[1755682384045,134.86,181.72,181.67,5.5046]
[1755682384243,134.86,181.72,181.65,2.46071911]
[1755682384545,134.82,181.76,181.68,2.42407273]
[1755682384948,5.5032,181.73,181.68,2.42407273]
[1755682385149,134.82,181.76,181.68,2.42407273]
[1755682385342,134.82,181.76,181.7,0.03964137]
[1755682385743,5.5036,181.71,181.7,0.03964137]
[1755682391052,5.5036,181.71,181.7,4.137e-05]
[1755682391652,5.54149277,181.72,181.7,4.137e-05]
[1755682391851,0.03819277,181.72,181.7,4.137e-05]
[1755682392254,5.5036,181.71,181.7,4.137e-05]
[1755682395959,5.54159277,181.72,181.7,4.137e-05]
[1755682396563,0.03819277,181.72,181.7,4.137e-05]
[1755682397760,0.03819277,181.72,181.71,5.5036]
[1755682398557,0.03819277,181.72,181.7,4.137e-05]
[1755682399869,5.5036,181.71,181.7,4.137e-05]
[1755682400364,5.54159277,181.72,181.7,4.137e-05]
[1755682401265,5.5036,181.71,181.7,4.137e-05]
[1755682404667,5.54159277,181.72,181.7,4.137e-05]
[1755682405862,0.03819277,181.72,181.7,5.50384137]
[1755682406061,0.03819277,181.72,181.7,4.137e-05]
[1755682409169,0.03819277,181.72,181.7,5.50394137]
[1755682410867,0.03819277,181.72,181.71,5.5036]
[1755682415778,0.03819277,181.72,181.7,5.50384137]
[1755682417079,0.03819277,181.72,181.7,4.137e-05]
[1755682419282,5.5036,181.71,181.7,4.137e-05]
[1755682431099,5.5058,181.64,181.61,11.68608039]
[1755682431295,2.42407273,181.71,181.61,5.5064]
[1755682431494,2.58081449,181.7,181.6,6.17968039]
[1755682431798,5.5062,181.63,181.6,11.68638039]
[1755682432498,5.54483305,181.63,181.6,11.68638039]
[1755682433295,5.54483305,181.63,181.6,5.5067]
[1755682433897,5.5063,181.62,181.6,5.5067]
[1755682434797,5.5063,181.62,181.59,11.68678039]
[1755682434993,5.5063,181.62,181.57,2.42407273]
[1755682434994,5.5067,181.61,181.57,8.60375312]
[1755682435694,5.5067,181.61,181.58,5.5074]
[1755682437194,5.507,181.6,181.57,7.93187273]
[1755682437396,5.507,181.6,181.55,6.17968039]
[1755682437596,0.03863305,181.63,181.55,6.17968039]
[1755682437899,2.42407273,181.68,181.57,5.5076]
[1755682438198,0.04080609,181.61,181.57,5.5076]
[1755682438397,5.54750609,181.61,181.57,5.5076]
[1755682440600,0.04080609,181.61,181.58,5.5075]
[1755682440802,0.04080609,181.61,181.54,8.60375312]
[1755682441198,0.04080609,181.61,181.6,2.42407273]
[1755682441503,0.04080609,181.61,181.57,2.42407273]
[1755682441704,0.04080609,181.61,181.59,5.507]
[1755682441902,5.5061,181.63,181.59,5.507]
[1755682442302,0.03970946,181.62,181.59,5.507]
[1755682442693,0.03970946,181.62,181.6,5.5069]
[1755682442896,0.03970946,181.62,181.57,2.42407273]
[1755682443608,0.03970946,181.62,181.6,5.5067]
[1755682443804,0.03970946,181.62,181.57,2.42407273]
[1755682444601,0.03970946,181.62,181.6,5.5067]
[1755682445706,0.03970946,181.62,181.59,5.5071]
[1755682446108,0.03970946,181.62,181.54,6.17968039]
[1755682446301,5.54620946,181.62,181.58,5.5073]
[1755682446905,0.03970946,181.62,181.56,2.42407273]
[1755682447497,5.5069,181.6,181.56,7.93197273]
[1755682448806,5.5072,181.59,181.56,2.42407273]
[1755682449508,5.5072,181.59,181.55,5.5083]
[1755682450509,5.5072,181.59,181.56,5.5081]
[1755682451209,5.54907483,181.59,181.56,5.5081]
[1755682452408,0.04187483,181.59,181.56,5.5081]
[1755682454503,0.04187483,181.59,181.54,2.42407273]
[1755682455011,0.04187483,181.59,181.56,5.5079]
[1755682457905,0.04187483,181.59,181.57,5.5077]
[1755682458107,0.04187483,181.59,181.57,2.42407273]
[1755682458404,11.008,181.7,181.57,2.42407273]
[1755682458811,11.008,181.7,181.61,5.5066]
[1755682459608,11.008,181.7,181.64,0.0377535]
[1755682460304,5.5054,181.65,181.64,0.0377535]
[1755682465809,5.5054,181.65,181.64,5.35e-05]
[1755682466014,6.0654,181.65,181.64,5.35e-05]
[1755682471619,140.8454,181.65,181.64,5.35e-05]
[1755682473120,143.42038868,181.65,181.64,5.35e-05]
[1755682477718,143.4245384,181.65,181.64,5.35e-05]
[1755682478123,142.8645384,181.65,181.64,5.35e-05]
[1755682478423,142.86517981,181.65,181.64,5.35e-05]
[1755682480725,140.2854,181.65,181.64,5.35e-05]
[1755682480924,142.86511096,181.65,181.64,5.35e-05]
[1755682486432,144.4180435,181.65,181.64,5.35e-05]
[1755682486629,141.83833254,181.65,181.64,5.35e-05]
[1755682486830,144.41815692,181.65,181.64,5.35e-05]
[1755682487433,144.41813905,181.65,181.64,5.35e-05]
[1755682487733,144.41817019,181.65,181.64,5.35e-05]
[1755682491227,142.84523765,181.65,181.64,5.35e-05]
[1755682491635,140.2654,181.65,181.64,5.35e-05]
[1755682493739,142.84707438,181.65,181.64,5.35e-05]
[1755682495634,8.08707438,181.65,181.64,5.35e-05]
[1755682495836,5.5054,181.65,181.64,5.35e-05]
[1755682496037,140.2654,181.65,181.64,5.35e-05]
[1755682501353,140.2654,181.65,181.64,4.28654325]
[1755682501552,140.2654,181.65,181.64,5.35e-05]
[1755682502851,0.03651083,181.66,181.64,5.35e-05]
[1755682503153,134.74,181.65,181.64,5.35e-05]
[1755682503947,140.2454,181.65,181.64,5.35e-05]
[1755682506254,134.74,181.65,181.64,5.35e-05]
[1755682506549,0.03651083,181.66,181.65,5.5054]
[1755682506752,0.03651083,181.66,181.65,11.68208603]
[1755682507254,0.03651083,181.66,181.65,5.5054]
[1755682507454,0.03651083,181.66,181.65,6.0654]
[1755682507747,134.72,181.7,181.65,9.51892508]
[1755682507951,134.72,181.7,181.64,1.55298604]
[1755682507952,134.72,181.7,181.68,7.72717409]
[1755682508156,134.7,181.72,181.68,1.55293254]
[1755682508350,134.7,181.72,181.7,4.62709797]
[1755682509148,5.5039,181.7,181.69,4.66478798]
[1755682510651,5.5039,181.7,181.69,0.03769001]
[1755682527163,5.5039,181.7,181.69,9.001e-05]
[1755682535168,8.06882189,181.7,181.69,9.001e-05]
[1755682535368,5.5068,181.61,181.59,1.55160105]
[1755682535561,134.62,181.65,181.57,6.16805801]
[1755682535968,5.5072,181.59,181.57,6.16805801]
[1755682536270,134.62,181.65,181.57,4.61645696]
[1755682536866,134.62,181.65,181.59,4.61645696]
[1755682537065,0.03838353,181.63,181.59,4.61645696]
[1755682537766,5.54458353,181.63,181.59,4.61645696]
[1755682538368,5.54458353,181.63,181.6,5.5067]
[1755682538762,5.54458353,181.63,181.59,4.61645696]
[1755682538966,5.54458353,181.63,181.6,5.5068]
[1755682539169,0.03838353,181.63,181.59,4.61645696]
[1755682539370,0.03838353,181.63,181.58,4.61645696]
[1755682540172,5.5068,181.61,181.58,10.12375696]
[1755682540673,0.03838353,181.63,181.58,5.17645696]
[1755682540873,0.03838353,181.63,181.58,4.61645696]
[1755682541179,0.03838353,181.63,181.61,5.5065]
[1755682541473,0.03838353,181.63,181.58,4.61645696]
[1755682541671,5.5063,181.62,181.59,5.5071]
[1755682541875,0.03838353,181.63,181.58,4.61645696]
[1755682543177,5.5072,181.6,181.58,4.61645696]
[1755682543375,0.03838353,181.63,181.57,4.61645696]
[1755682544472,5.5075,181.58,181.57,4.61645696]
[1755682544671,0.03838353,181.63,181.55,4.61645696]
[1755682544875,137.04605116,181.65,181.55,4.61645696]
[1755682545073,11.0122,181.63,181.54,4.61645696]
[1755682545278,137.04605116,181.65,181.52,4.61645696]
[1755682545478,0.03708493,181.6,181.52,4.61645696]
[1755682545678,0.03708493,181.6,181.51,4.61645696]
[1755682545679,5.509,181.53,181.51,4.61645696]
[1755682545879,134.62,181.59,181.51,4.61645696]
[1755682546275,5.5093,181.52,181.5,4.61645696]
[1755682547482,0.03614201,181.53,181.5,4.61645696]
[1755682548188,5.54544201,181.53,181.49,10.12645696]
[1755682548986,0.03614201,181.53,181.5,5.5099]
[1755682549179,0.03614201,181.53,181.49,4.61645696]
[1755682549683,0.03614201,181.53,181.51,2.42605116]
[1755682550482,0.03614201,181.53,181.52,5.5093]
[1755682552085,0.03614201,181.53,181.51,7.93555116]
[1755682552785,0.03614201,181.53,181.52,5.5093]
[1755682560683,134.62,181.59,181.55,5.5082]
[1755682560889,134.62,181.59,181.51,7.03737801]
[1755682561292,5.5072,181.6,181.56,5.5079]
[1755682561892,5.5072,181.6,181.57,5.5078]
[1755682562193,5.5073,181.59,181.54,2.42605116]
[1755682562695,134.66,181.65,181.52,2.42605116]
[1755682563397,5.5077,181.58,181.57,0.03488008]
[1755682576101,5.5095,181.52,181.43,9.55858761]
[1755682576802,5.5097,181.51,181.47,5.5107]
[1755682577397,5.54692525,181.51,181.47,5.5107]
[1755682577700,0.03722525,181.51,181.48,5.5105]
[1755682578004,0.03722525,181.51,181.44,8.60029271]
[1755682578405,5.5101,181.5,181.47,5.5108]
[1755682578706,0.03722525,181.51,181.47,5.5108]
[1755682578915,5.54712525,181.51,181.47,5.5108]
[1755682582203,5.51,181.5,181.47,5.5108]
[1755682582410,0.03722525,181.51,181.43,7.13253645]
[1755682582806,5.5101,181.5,181.46,5.511]
[1755682583006,0.03722525,181.51,181.43,7.13253645]
[1755682583310,5.51,181.5,181.46,5.511]
[1755682583502,5.51,181.5,181.44,8.60029271]
[1755682583704,0.03722525,181.51,181.44,8.60029271]
[1755682584105,0.03722525,181.51,181.47,2.42605116]
[1755682584603,0.03722525,181.51,181.5,5.5099]
[1755682586902,0.03722525,181.51,181.48,6.17424155]
[1755682586903,0.03722525,181.51,181.49,5.5102]
[1755682588208,0.03722525,181.51,181.5,5.5099]
[1755682592614,0.03722525,181.51,181.5,7.93595116]
[1755682593614,0.03722525,181.51,181.5,5.5099]
[1755682597516,8.58934563,181.64,181.48,8.60029271]
[1755682597719,2.61065937,181.63,181.52,2.42605116]
[1755682597916,2.61065937,181.62,181.52,2.42605116]
[1755682598117,5.5075,181.59,181.55,5.5083]
[1755682598514,5.5068,181.61,181.57,5.5078]
[1755682598720,134.8,181.66,181.55,2.42605116]
[1755682599222,5.5068,181.61,181.57,5.5077]
[1755682599520,5.5068,181.61,181.59,0.03583514]
[1755682599714,5.5064,181.62,181.59,0.03583514]
[1755682600413,134.8,181.66,181.59,0.03583514]
[1755682602015,5.5057,181.64,181.59,5.54293514]
[1755682602420,134.8,181.66,181.59,5.54293514]
[1755682602717,370.12,181.7,181.59,0.03583514]
[1755682602924,2.60895521,181.69,181.59,0.03583514]
[1755682603123,5.5056,181.65,181.58,2.42605116]
[1755682603617,5.5056,181.65,181.62,0.03946091]
[1755682604122,5.5058,181.64,181.62,0.03946091]
[1755682607325,5.506,181.63,181.62,0.03946091]
[1755682610922,5.5058,181.64,181.62,0.03946091]
[1755682612429,372.54605116,181.7,181.62,0.03946091]
[1755682613329,5.5059,181.64,181.62,0.03946091]
[1755682615730,5.506,181.63,181.62,0.03946091]
[1755682617530,134.68,181.67,181.62,0.03946091]